lending/lending_fUSD_20251116
["ID","MTS","AMOUNT","RATE_DAILY","PERIOD"]
[394081837,1763251844253,-151.0,0.0001857,2]
[394081838,1763251844262,-151.0,0.0001857,2]
[394081839,1763251844272,-151.0,0.0001857,2]
[394081840,1763251844281,-613.797731,0.0001857,2]
[394081841,1763251844291,-613.797731,0.0001857,2]
[394081842,1763251844300,-613.797731,0.0001857,2]
[394081843,1763251844309,-613.797731,0.0001857,2]
[394081844,1763251844318,-151.0,0.0001857,2]
[394081845,1763251844328,-151.0,0.0001857,2]
[394081846,1763251844337,-151.0,0.0001857,2]
[394081847,1763251844347,-151.0,0.0001857,2]
[394081848,1763251844356,-371.669598,0.0001857,2]
[394081849,1763251844366,-151.0,0.0001857,2]
[394081850,1763251844375,-513.101966,0.0001857,2]
[394081851,1763251844385,-151.0,0.0001857,2]
[394081852,1763251844395,-513.101966,0.0001857,2]
[394081853,1763251844404,-513.101966,0.0001857,2]
[394081854,1763251844414,-182.44842,0.0001857,2]
[394081855,1763251844423,-513.101966,0.0001857,2]
[394081856,1763251844433,-151.0,0.0001857,2]
[394081857,1763251844442,-151.0,0.0001857,2]
[394081858,1763251844451,-224.069189,0.0001857,2]
[394081859,1763251844460,-424.860105,0.0001857,2]
[394081860,1763251844469,-224.069189,0.0001857,2]
[394081861,1763251844478,-424.860105,0.0001857,2]
[394081862,1763251844487,-224.069189,0.0001857,2]
[394081863,1763251844500,-424.860105,0.0001857,2]
[394081864,1763251844509,-224.069189,0.0001857,2]
[394081865,1763251844518,-424.860105,0.0001857,2]
[394081866,1763251844528,-151.0,0.0001857,2]
[394081867,1763251844539,-151.0,0.0001857,2]
[394081868,1763251844548,-151.0,0.0001857,2]
[394081869,1763251844557,-151.0,0.0001857,2]
[394081870,1763251844567,-151.0,0.0001857,2]
[394081871,1763251844576,-151.0,0.0001857,2]
[394081872,1763251844586,-158.444119,0.0001857,2]
[394081873,1763251844596,-151.0,0.0001857,2]
[394081874,1763251844606,-151.0,0.0001857,2]
[394081875,1763251844615,-151.0,0.0001857,2]
[394081876,1763251844624,-151.0,0.0001857,2]
[394081877,1763251844634,-151.0,0.0001857,2]
[394081878,1763251844643,-154.019544,0.0001857,2]
[394081879,1763251844652,-151.0,0.0001857,2]
[394081880,1763251844662,-151.0,0.0001857,2]
[394081881,1763251844671,-151.0,0.0001857,2]
[394081882,1763251844680,-151.0,0.0001857,2]
[394081883,1763251844689,-151.0,0.0001857,2]
[394081884,1763251844699,-151.0,0.0001857,2]
[394081885,1763251844709,-151.0,0.0001857,2]
[394081886,1763251844719,-151.0,0.0001857,2]
[394081887,1763251844729,-155.883635,0.0001857,2]
[394081888,1763251844738,-152.806514,0.0001857,2]
[394081889,1763251844748,-151.0,0.0001857,2]
[394081890,1763251844758,-151.0,0.0001857,2]
[394081891,1763251844768,-151.0,0.0001857,2]
[394081892,1763251844777,-474.508997,0.0001857,2]
[394081893,1763251844787,-474.508997,0.0001857,2]
[394081894,1763251844797,-474.508997,0.0001857,2]
[394081895,1763251844806,-474.508997,0.0001857,2]
[394081896,1763251844815,-151.0,0.0001857,2]
[394081897,1763251844825,-151.0,0.0001857,2]
[394081898,1763251844834,-151.0,0.0001857,2]
[394081899,1763251844845,-154.150656,0.0001857,2]
[394081900,1763251844855,-317.316325,0.0001857,2]
[394081901,1763251844864,-317.316325,0.0001857,2]
[394081902,1763251844873,-317.316325,0.0001857,2]
[394081903,1763251844882,-317.316325,0.0001857,2]
[394081904,1763251844891,-245.26,0.0001857,2]
[394081905,1763251844901,-287.14818742,0.00018617,2]
[394081906,1763251844910,-312.59322376,0.00018633,2]
[394081907,1763251844919,-4507.0,0.00018635,2]
[394081908,1763251844928,-352.49,0.00018744,2]
[394081909,1763251844937,-1000.0,0.0001876,2]
[394081910,1763251844946,-587.0,0.00018771,2]
[394081911,1763251844955,-587.0,0.00018771,2]
[394081912,1763251844965,-150.37,0.000188,2]
[394081913,1763251844974,-150.37,0.000188,2]
[394081914,1763251844983,-150.37,0.000188,2]
[394081915,1763251844992,-150.37,0.000188,2]
[394081916,1763251845002,-150.37,0.000188,2]
[394081917,1763251845011,-150.37,0.000188,2]
[394081918,1763251845020,-150.37,0.000188,2]
[394081919,1763251845030,-245.26,0.00018844,2]
[394081920,1763251845039,-166.66,0.00018884,2]
[394081921,1763251845048,-2351.0,0.0001896,2]
[394081922,1763251845189,-1047.59673315,0.00019,2]
[394081923,1763251845199,-9484.36219257,0.00019,2]
[394081924,1763251845208,-362.56886119,0.00019,2]
[394081925,1763251845217,-354.90817882,0.0001901,7]
[394081926,1763251845226,-500.0,0.00019068,2]
[394081927,1763251845236,-287.14818742,0.0001907,2]
[394081928,1763251845245,-249.38015306,0.00019074,2]
[394081929,1763251845254,-151.0,0.00019118,2]
[394081930,1763251845263,-151.0,0.00019118,2]
[394081931,1763251845272,-595.37131296,0.00019118,2]
[394081932,1763251845281,-151.0,0.00019118,2]
[394081933,1763251845291,-245.28,0.00019118,2]
[394081934,1763251845300,-500.0,0.00019151,2]
[394081935,1763251845309,-151.0,0.00019178,2]
[394081936,1763251845318,-153.153507,0.00019178,2]
[394081937,1763251845327,-1348.898314,0.00019178,2]
[394081938,1763251845337,-1348.898314,0.00019178,2]
[394081939,1763251845346,-1348.898314,0.00019178,2]
[394081940,1763251845355,-1348.898314,0.00019178,2]
[394081941,1763251845364,-342.29921997,0.00019274,2]
[394081942,1763251845373,-161.0,0.00019334,2]
[394081943,1763251845383,-1000.0,0.00019438,2]
[394081944,1763251845392,-166.66,0.00019488,2]
[394081945,1763251845405,-1730.43454739,0.000195,7]
[394081946,1763251845422,-287.14818742,0.00019522,2]
[394081947,1763251845431,-151.0,0.00019666,2]
[394081948,1763251845440,-151.0,0.00019666,2]
[394081949,1763251845450,-617.40005154,0.00019666,2]
[394081950,1763251845459,-151.0,0.00019666,2]
[394081951,1763251845468,-352.49,0.00019681,2]
[394081952,1763251845478,-10057.37,0.00019726,2]
[394081953,1763251845487,-500.0,0.00019726,2]
[394081954,1763251845499,-156.587,0.00019726,2]
[394081955,1763251845508,-300.0,0.0001979,2]
[394081956,1763251845517,-334.5472959,0.00019939,2]
[394081957,1763251845526,-151.0,0.00019939,2]
[394081958,1763251845536,-287.61899177,0.00019939,2]
[394081959,1763251845545,-287.43533561,0.00019975,2]
[394081960,1763251845554,-3006.90779574,0.00019999,2]
[394081962,1763251845563,-1029.44122537,0.0002,2]
[394081965,1763251845572,-1521.22343733,0.0002,2]
[394081967,1763251845582,-1453.32245693,0.0002,5]
[394081968,1763251845591,-61871.27619217,0.0002,5]
[394081971,1763251845601,-1284.49199538,0.0002,2]
[394081972,1763251845610,-2183.04347903,0.0002,3]
[394081973,1763251845619,-1036.78954494,0.0002,2]
[394081974,1763251845628,-2841.23192426,0.0002,2]
[394081975,1763251845638,-19546.0,0.0002,7]
[394081976,1763251845647,-5423.74807,0.0002,2]
[394081977,1763251845656,-478.96003305,0.0002,7]
[394081978,1763251845665,-166.66,0.00020091,2]
[394081979,1763251845674,-1000.0,0.00020116,2]
[394081980,1763251845683,-21827.50229036,0.0002015,2]
[394081981,1763251845692,-228.71534727,0.00020168,2]
[394081982,1763251845700,-1000.0,0.00020187,2]
[394081983,1763251845709,-1000.0,0.00020187,2]
[394081984,1763251845718,-685.43,0.00020187,2]
[394081985,1763251845727,-151.0,0.00020214,2]
[394081986,1763251845740,-151.0,0.00020214,2]
[394081987,1763251845750,-640.24385345,0.00020214,2]
[394081988,1763251845760,-151.0,0.00020214,2]
[394081989,1763251845769,-162.380719,0.00020274,2]
[394081990,1763251845778,-1000.0,0.00020281,2]
[394081991,1763251845788,-514.89732822,0.00020295,2]
[394081992,1763251845797,-500.0,0.00020373,2]
[394081993,1763251845807,-514.86475815,0.00020373,2]
[394081994,1763251845816,-33165.3883718,0.00020394,2]
[394081995,1763251845826,-19648.2613215,0.00020394,2]
[394081996,1763251845835,-54356.0821685,0.00020394,2]
[394081997,1763251845846,-8683.2760604,0.00020394,2]
[394081998,1763251845855,-6119.0955548,0.00020394,2]
[394081999,1763251845864,-156.39787,0.00020395,2]
[394082000,1763251845873,-285.062401,0.00020395,2]
[394082001,1763251845883,-151.0,0.00020395,2]
[394082002,1763251845892,-285.062401,0.00020395,2]
[394082003,1763251845902,-285.062401,0.00020395,2]
[394082004,1763251845911,-208.097923,0.00020395,2]
[394082005,1763251845920,-285.062401,0.00020395,2]
[394082006,1763251845930,-151.0,0.00020395,2]
[394082007,1763251845939,-151.0,0.00020395,2]
[394082008,1763251845948,-151.0,0.00020395,2]
[394082009,1763251845957,-151.0,0.00020395,2]
[394082010,1763251845966,-213.537376,0.00020395,2]
[394082011,1763251845975,-151.0,0.00020395,2]
[394082012,1763251845984,-151.0,0.00020395,2]
[394082013,1763251845993,-151.0,0.00020395,2]
[394082014,1763251846002,-151.0,0.00020395,2]
[394082015,1763251846011,-183.10432,0.00020395,2]
[394082016,1763251846021,-151.0,0.00020395,2]
[394082017,1763251846030,-151.0,0.00020395,2]
[394082018,1763251846039,-166.978154,0.00020395,2]
[394082019,1763251846048,-151.0,0.00020395,2]
[394082020,1763251846058,-151.0,0.00020395,2]
[394082021,1763251846067,-151.0,0.00020395,2]
[394082022,1763251846076,-151.0,0.00020395,2]
[394082023,1763251846086,-172.793134,0.00020395,2]
[394082024,1763251846096,-151.0,0.00020395,2]
[394082025,1763251846105,-151.0,0.00020395,2]
[394082026,1763251846114,-151.0,0.00020395,2]
[394082027,1763251846123,-151.0,0.00020395,2]
[394082028,1763251846132,-151.0,0.00020395,2]
[394082029,1763251846141,-151.0,0.00020395,2]
[394082030,1763251846150,-151.0,0.00020395,2]
[394082031,1763251846159,-151.0,0.00020395,2]
[394082032,1763251846168,-151.0,0.00020395,2]
[394082033,1763251846177,-151.0,0.00020395,2]
[394082034,1763251846186,-151.0,0.00020395,2]
[394082035,1763251846195,-371.669598,0.00020395,2]
[394082036,1763251846204,-151.0,0.00020395,2]
[394082037,1763251846213,-513.101966,0.00020395,2]
[394082038,1763251846222,-160.342941,0.00020395,2]
[394082039,1763251846232,-513.101966,0.00020395,2]
[394082040,1763251846241,-513.101966,0.00020395,2]
[394082041,1763251846250,-513.101966,0.00020395,2]
[394082042,1763251846260,-151.0,0.00020395,2]
[394082043,1763251846272,-151.0,0.00020395,2]
[394082044,1763251846281,-224.069189,0.00020395,2]
[394082045,1763251846291,-424.860105,0.00020395,2]
[394082046,1763251846300,-224.069189,0.00020395,2]
[394082047,1763251846309,-424.860105,0.00020395,2]
[394082048,1763251846318,-224.069189,0.00020395,2]
[394082049,1763251846327,-424.860105,0.00020395,2]
[394082050,1763251846337,-224.069189,0.00020395,2]
[394082051,1763251846346,-424.860105,0.00020395,2]
[394082052,1763251846356,-151.0,0.00020395,2]
[394082053,1763251846365,-151.0,0.00020395,2]
[394082054,1763251846375,-151.0,0.00020395,2]
[394082055,1763251846384,-156.189326,0.00020395,2]
[394082056,1763251846393,-151.0,0.00020395,2]
[394082057,1763251846403,-151.0,0.00020395,2]
[394082058,1763251846412,-151.0,0.00020395,2]
[394082059,1763251846420,-151.0,0.00020395,2]
[394082060,1763251846429,-151.0,0.00020395,2]
[394082061,1763251846438,-151.0,0.00020395,2]
[394082062,1763251846447,-151.0,0.00020395,2]
[394082063,1763251846456,-151.0,0.00020395,2]
[394082064,1763251846465,-151.0,0.00020395,2]
[394082065,1763251846474,-151.0,0.00020395,2]
[394082066,1763251846483,-151.0,0.00020395,2]
[394082067,1763251846493,-151.0,0.00020395,2]
[394082068,1763251846509,-151.0,0.00020395,2]
[394082069,1763251846519,-151.0,0.00020395,2]
[394082070,1763251846528,-151.0,0.00020395,2]
[394082071,1763251846538,-151.0,0.00020395,2]
[394082072,1763251846547,-263.548275,0.00020395,2]
[394082073,1763251846556,-474.508997,0.00020395,2]
[394082074,1763251846566,-474.508997,0.00020395,2]
[394082075,1763251846575,-474.508997,0.00020395,2]
[394082076,1763251846584,-474.508997,0.00020395,2]
[394082077,1763251846594,-151.0,0.00020395,2]
[394082078,1763251846603,-151.0,0.00020395,2]
[394082079,1763251846613,-151.0,0.00020395,2]
[394082080,1763251846623,-317.316325,0.00020395,2]
[394082081,1763251846633,-317.316325,0.00020395,2]
[394082082,1763251846642,-317.316325,0.00020395,2]
[394082083,1763251846651,-317.316325,0.00020395,2]
[394082084,1763251846661,-151.0,0.00020395,2]
[394082085,1763251846670,-151.0,0.00020395,2]
[394082086,1763251846680,-151.0,0.00020395,2]
[394082087,1763251846689,-151.0,0.00020395,2]
[394082088,1763251846698,-151.0,0.00020395,2]
[394082089,1763251846707,-151.0,0.00020395,2]
[394082090,1763251846717,-151.0,0.00020395,2]
[394082091,1763251846726,-151.0,0.00020395,2]
[394082092,1763251846735,-151.0,0.00020395,2]
[394082093,1763251846745,-151.0,0.00020395,2]
[394082094,1763251846754,-151.0,0.00020395,2]
[394082095,1763251846763,-151.0,0.00020395,2]
[394082096,1763251846772,-151.0,0.00020395,2]
[394082097,1763251846782,-213.876581,0.00020395,2]
[394082098,1763251846791,-151.0,0.00020395,2]
[394082099,1763251846800,-151.0,0.00020395,2]
[394082100,1763251846810,-253.049661,0.00020395,2]
[394082101,1763251846819,-213.876581,0.00020395,2]
[394082102,1763251846828,-2220.121972,0.00020395,2]
[394082103,1763251846838,-151.0,0.00020395,2]
[394082104,1763251846848,-213.876581,0.00020395,2]
[394082105,1763251846857,-151.0,0.00020395,2]
[394082106,1763251846867,-213.876581,0.00020395,2]
[394082107,1763251846876,-255.515513,0.00020395,2]
[394082108,1763251846885,-151.0,0.00020395,2]
[394082109,1763251846894,-151.0,0.00020395,2]
[394082110,1763251846904,-151.0,0.00020395,2]
[394082111,1763251846913,-193.063553,0.00020395,2]
[394082112,1763251846922,-151.0,0.00020395,2]
[394082113,1763251846931,-151.0,0.00020395,2]
[394082114,1763251846940,-151.0,0.00020395,2]
[394082115,1763251846950,-151.0,0.00020395,2]
[394082116,1763251846959,-151.0,0.00020395,2]
[394082117,1763251846968,-190.702094,0.00020395,2]
[394082118,1763251846978,-151.0,0.00020395,2]
[394082119,1763251846987,-151.0,0.00020395,2]
[394082120,1763251846996,-151.0,0.00020395,2]
[394082121,1763251847005,-151.0,0.00020395,2]
[394082122,1763251847015,-151.0,0.00020395,2]
[394082123,1763251847025,-151.0,0.00020395,2]
[394082124,1763251847034,-465.726446,0.00020395,2]
[394082125,1763251847044,-151.0,0.00020395,2]
[394082126,1763251847053,-170.043342,0.00020395,2]
[394082127,1763251847062,-151.0,0.00020395,2]
[394082128,1763251847072,-465.726446,0.00020395,2]
[394082129,1763251847082,-151.0,0.00020395,2]
[394082130,1763251847091,-465.726446,0.00020395,2]
[394082131,1763251847100,-151.0,0.00020395,2]
[394082132,1763251847110,-465.726446,0.00020395,2]
[394082133,1763251847119,-151.0,0.00020395,2]
[394082134,1763251847128,-151.0,0.00020395,2]
[394082135,1763251847137,-151.0,0.00020395,2]
[394082136,1763251847147,-151.0,0.00020395,2]
[394082137,1763251847156,-379.00432,0.00020395,2]
[394082138,1763251847165,-379.00432,0.00020395,2]
[394082139,1763251847175,-379.00432,0.00020395,2]
[394082140,1763251847184,-151.0,0.00020395,2]
[394082141,1763251847193,-379.00432,0.00020395,2]
[394082142,1763251847203,-151.0,0.00020395,2]
[394082143,1763251847212,-151.0,0.00020395,2]
[394082144,1763251847221,-151.0,0.00020395,2]
[394082145,1763251847230,-1348.898314,0.00020395,2]
[394082146,1763251847240,-1348.898314,0.00020395,2]
[394082147,1763251847249,-1348.898314,0.00020395,2]
[394082148,1763251847258,-1348.898314,0.00020395,2]
[394082149,1763251847267,-151.0,0.00020395,2]
[394082150,1763251847277,-151.0,0.00020395,2]
[394082151,1763251847286,-151.0,0.00020395,2]
[394082152,1763251847296,-151.0,0.00020395,2]
[394082153,1763251847305,-215.191817,0.00020395,2]
[394082154,1763251847316,-167.572262,0.00020395,2]
[394082155,1763251847325,-151.0,0.00020395,2]
[394082156,1763251847335,-167.572262,0.00020395,2]
[394082157,1763251847345,-151.0,0.00020395,2]
[394082158,1763251847355,-167.572262,0.00020395,2]
[394082159,1763251847364,-151.0,0.00020395,2]
[394082160,1763251847373,-167.572262,0.00020395,2]
[394082161,1763251847382,-151.0,0.00020395,2]
[394082162,1763251847392,-224.137496,0.00020395,2]
[394082163,1763251847401,-726.530881,0.00020395,2]
[394082164,1763251847410,-726.530881,0.00020395,2]
[394082165,1763251847419,-151.0,0.00020395,2]
[394082166,1763251847428,-726.530881,0.00020395,2]
[394082167,1763251847437,-237.202326,0.00020395,2]
[394082168,1763251847446,-726.530881,0.00020395,2]
[394082169,1763251847456,-151.0,0.00020395,2]
[394082170,1763251847465,-151.0,0.00020395,2]
[394082171,1763251847474,-151.0,0.00020395,2]
[394082172,1763251847483,-151.0,0.00020395,2]
[394082173,1763251847492,-151.0,0.00020395,2]
[394082174,1763251847506,-151.0,0.00020395,2]
[394082175,1763251847515,-233.658584,0.00020395,2]
[394082176,1763251847524,-218.122017,0.00020395,2]
[394082177,1763251847659,-151.0,0.00020395,2]
[394082178,1763251847669,-314.418471,0.00020395,2]
[394082179,1763251847678,-218.122017,0.00020395,2]
[394082180,1763251847688,-151.0,0.00020395,2]
[394082181,1763251847697,-224.439472,0.00020395,2]
[394082182,1763251847707,-209.911042,0.00020395,2]
[394082183,1763251847716,-314.418471,0.00020395,2]
[394082184,1763251847725,-218.122017,0.00020395,2]
[394082185,1763251847734,-209.911042,0.00020395,2]
[394082186,1763251847743,-314.418471,0.00020395,2]
[394082187,1763251847752,-218.122017,0.00020395,2]
[394082188,1763251847762,-209.911042,0.00020395,2]
[394082189,1763251847772,-314.418471,0.00020395,2]
[394082190,1763251847781,-209.911042,0.00020395,2]
[394082191,1763251847790,-151.0,0.00020395,2]
[394082192,1763251847799,-151.0,0.00020395,2]
[394082193,1763251847809,-151.0,0.00020395,2]
[394082194,1763251847818,-151.0,0.00020395,2]
[394082195,1763251847827,-157.894586,0.00020395,2]
[394082196,1763251847837,-151.0,0.00020395,2]
[394082197,1763251847847,-282.969102,0.00020395,2]
[394082198,1763251847856,-151.0,0.00020395,2]
[394082199,1763251847866,-151.0,0.00020395,2]
[394082200,1763251847876,-151.0,0.00020395,2]
[394082201,1763251847884,-154.482396,0.00020395,2]
[394082202,1763251847895,-154.482396,0.00020395,2]
[394082203,1763251847904,-400.798332,0.00020395,2]
[394082204,1763251847914,-154.482396,0.00020395,2]
[394082205,1763251847923,-400.798332,0.00020395,2]
[394082206,1763251847932,-154.482396,0.00020395,2]
[394082207,1763251847941,-151.0,0.00020395,2]
[394082208,1763251847950,-400.798332,0.00020395,2]
[394082209,1763251847961,-400.798332,0.00020395,2]
[394082210,1763251847970,-278.78028,0.00020395,2]
[394082211,1763251847980,-151.0,0.00020395,2]
[394082212,1763251847989,-151.0,0.00020395,2]
[394082213,1763251847998,-168.382217,0.00020395,2]
[394082214,1763251848007,-278.78028,0.00020395,2]
[394082215,1763251848016,-168.382217,0.00020395,2]
[394082216,1763251848026,-159.291271,0.00020395,2]
[394082217,1763251848035,-278.78028,0.00020395,2]
[394082218,1763251848044,-168.382217,0.00020395,2]
[394082219,1763251848053,-151.0,0.00020395,2]
[394082220,1763251848062,-278.78028,0.00020395,2]
[394082221,1763251848071,-323.871791,0.00020395,2]
[394082222,1763251848080,-168.382217,0.00020395,2]
[394082223,1763251848089,-169.242445,0.00020395,2]
[394082224,1763251848099,-236.284916,0.00020395,2]
[394082225,1763251848108,-323.871791,0.00020395,2]
[394082226,1763251848117,-151.0,0.00020395,2]
[394082227,1763251848127,-236.284916,0.00020395,2]
[394082228,1763251848136,-268.098574,0.00020395,2]
[394082229,1763251848145,-199.51000664,0.00020395,2]
[394082230,1763251848501,-124.36178436,0.00020395,2]
[394082231,1763251848516,-236.284916,0.00020395,2]
[394082232,1763251848527,-154.628091,0.00020395,2]
[394082233,1763251848536,-92.2252086,0.00020395,2]
[394082234,1763251848827,-377.992907,0.00018083,2]
[394082235,1763251848837,-240.968477,0.00018083,2]
[394082236,1763251848846,-377.992907,0.00018083,2]
[394082237,1763251848856,-151.0,0.00018083,2]
[394082238,1763251848865,-278.752198,0.00018083,2]
[394082239,1763251848875,-743.383511,0.00018083,2]
[394082240,1763251848888,-810.701869,0.00018083,2]
[394082241,1763251848898,-240.968477,0.00018083,2]
[394082242,1763251848908,-175.8733654,0.00020395,2]
[394082243,1763251848917,-236.284916,0.00020395,2]
[394082244,1763251848926,-323.871791,0.00020395,2]
[394082245,1763251848936,-151.0,0.00020395,2]
[394082246,1763251848945,-268.098574,0.00020395,2]
[394082247,1763251848954,-268.098574,0.00020395,2]
[394082248,1763251848963,-240.968477,0.00020395,2]
[394082249,1763251848972,-377.992907,0.00020395,2]
[394082250,1763251848982,-240.968477,0.00020395,2]
[394082251,1763251848991,-377.992907,0.00020395,2]
[394082252,1763251849001,-151.0,0.00020395,2]
[394082253,1763251849010,-278.752198,0.00020395,2]
[394082254,1763251849019,-1554.08538,0.00020395,2]
[394082255,1763251849028,-628.9,0.00020407,2]
[394082256,1763251849038,-823.0,0.00020529,2]
[394082257,1763251849047,-823.0,0.00020529,2]
[394082258,1763251849056,-187.08097,0.00020548,2]
[394082259,1763251849066,-187.08097,0.00020548,2]
[394082260,1763251849075,-187.08097,0.00020548,2]
[394082261,1763251849084,-187.08097,0.00020548,2]
[394082262,1763251849094,-187.08097,0.00020548,2]
[394082263,1763251849104,-187.08097,0.00020548,2]
[394082264,1763251849113,-187.08097,0.00020548,2]
[394082265,1763251849122,-187.08097,0.00020548,2]
[394082266,1763251849131,-352.49,0.00020618,2]
[394082267,1763251849140,-166.66,0.00020695,2]
[394082268,1763251849149,-215.92914439,0.00020762,2]
[394082269,1763251849159,-151.0,0.00020762,2]
[394082270,1763251849168,-663.93287602,0.00020762,2]
[394082271,1763251849178,-151.0,0.00020762,2]
[394082272,1763251849188,-1000.0,0.00020795,2]
[394082273,1763251849197,-168.3888056,0.00020822,2]
[394082274,1763251849207,-3292.0,0.00020841,2]
[394082275,1763251849216,-7400.1984188,0.00020929,2]
[394082276,1763251849226,-1303.0377284,0.00020929,2]
[394082277,1763251849238,-438.15202411,0.00020929,2]
[394082278,1763251849295,-377.992907,0.00018083,2]
[394082279,1763251849305,-240.968477,0.00020395,2]
[394082280,1763251849314,-1496.49028603,0.00020929,2]
[394082281,1763251849771,-151.0,0.00018083,2]
[394082282,1763251849781,-278.752198,0.00018083,2]
[394082283,1763251849790,-1554.08538,0.00018083,2]
[394082284,1763251849799,-240.968477,0.00018083,2]
[394082285,1763251849808,-151.0,0.00018083,2]
[394082286,1763251849817,-377.992907,0.00018083,2]
[394082287,1763251849826,-1554.08538,0.00018083,2]
[394082288,1763251849835,-278.752198,0.00018083,2]
[394082289,1763251849844,-47.32990684,0.00020395,2]
[394082290,1763251849855,-330.66300016,0.00020395,2]
[394082291,1763251849864,-151.0,0.00020395,2]
[394082292,1763251849873,-278.752198,0.00020395,2]
[394082293,1763251849883,-1554.08538,0.00020395,2]
[394082294,1763251849892,-240.968477,0.00020395,2]
[394082295,1763251849901,-151.0,0.00020395,2]
[394082296,1763251849910,-377.992907,0.00020395,2]
[394082297,1763251849920,-1146.43965676,0.00020929,2]
[394082298,1763251849929,-791.31638108,0.00020929,2]
[394082299,1763251849940,-11337.16493812,0.00020929,2]
[394082300,1763251849949,-1937.5007779,0.00020929,2]
[394082301,1763251849958,-1365.3547711,0.00020929,2]
[394082302,1763251849967,-151.0,0.00020929,2]
[394082303,1763251849976,-151.0,0.00020929,2]
[394082304,1763251849985,-151.0,0.00020929,2]
[394082305,1763251849995,-151.0,0.00020929,2]
[394082306,1763251850004,-151.0,0.00020929,2]
[394082307,1763251850014,-151.0,0.00020929,2]
[394082308,1763251850028,-151.0,0.00020929,2]
[394082309,1763251850039,-151.0,0.00020929,2]
[394082310,1763251850048,-151.0,0.00020929,2]
[394082311,1763251850057,-151.0,0.00020929,2]
[394082312,1763251850067,-151.0,0.00020929,2]
[394082313,1763251850076,-151.0,0.00020929,2]
[394082314,1763251850086,-151.0,0.00020929,2]
[394082315,1763251850095,-1886.034925,0.00020929,2]
[394082316,1763251850104,-1886.034925,0.00020929,2]
[394082317,1763251850114,-151.0,0.00020929,2]
[394082318,1763251850123,-1886.034925,0.00020929,2]
[394082319,1763251850132,-1886.034925,0.00020929,2]
[394082320,1763251850141,-151.0,0.00020929,2]
[394082321,1763251850150,-151.0,0.00020929,2]
[394082322,1763251850159,-151.0,0.00020929,2]
[394082323,1763251850168,-158.847967,0.00020929,2]
[394082324,1763251850178,-151.0,0.00020929,2]
[394082325,1763251850188,-151.0,0.00020929,2]
[394082326,1763251850197,-879.979672,0.00020929,2]
[394082327,1763251850206,-151.0,0.00020929,2]
[394082328,1763251850216,-161.347656,0.00020929,2]
[394082329,1763251850225,-655.66451783,0.00020929,2]
[394082330,1763251850252,-278.752198,0.00020395,2]
[394082331,1763251850262,-1554.08538,0.00020395,2]
[394082332,1763251850271,-224.31515417,0.00020929,2]
[394082333,1763251850280,-879.979672,0.00020929,2]
[394082334,1763251850290,-879.979672,0.00020929,2]
[394082335,1763251850299,-151.0,0.00020929,2]
[394082336,1763251850308,-151.0,0.00020929,2]
[394082337,1763251850317,-151.0,0.00020929,2]
[394082338,1763251850327,-613.797731,0.00020929,2]
[394082339,1763251850336,-613.797731,0.00020929,2]
[394082340,1763251850345,-613.797731,0.00020929,2]
[394082341,1763251850354,-613.797731,0.00020929,2]
[394082342,1763251850363,-146.09699983,0.00020929,2]